lending/lending_fUSD_20250808
["ID","MTS","AMOUNT","RATE_DAILY","PERIOD"]
[378043140,1754679041070,-1100.0,0.00030137,7]
[378043141,1754679041080,-700.0,0.00030137,7]
[378043142,1754679041090,-500.0,0.00030137,7]
[378043143,1754679041100,-1100.0,0.00030137,7]
[378043144,1754679041110,-700.0,0.00030137,7]
[378043145,1754679041121,-500.0,0.00030137,7]
[378043146,1754679041131,-1100.0,0.00030137,7]
[378043147,1754679041140,-700.0,0.00030137,7]
[378043148,1754679041149,-500.0,0.00030137,7]
[378043149,1754679041159,-1100.0,0.00030137,7]
[378043150,1754679041168,-1339.28729568,0.00030137,7]
[378043151,1754679041177,-502.60839565,0.00030137,7]
[378043152,1754679041187,-1100.0,0.00030137,7]
[378043153,1754679041196,-1604.08261836,0.00030137,7]
[378043154,1754679041206,-211.62674257,0.00030137,7]
[378043155,1754679041215,-400.0,0.00030141,2]
[378043156,1754679041224,-400.0,0.00030141,2]
[378043157,1754679041234,-400.0,0.00030141,2]
[378043158,1754679041243,-237.97,0.00030141,2]
[378043159,1754679041253,-109819.59296583,0.00030142,3]
[378043160,1754679041267,-212.54546017,0.00030142,3]
[378043161,1754679041277,-303.50214485,0.00030151,2]
[378043162,1754679041286,-17417.68229498,0.00030152,2]
[378043163,1754679041307,-291.075,0.00030152,2]
[378043164,1754679041324,-1466.43173063,0.00021225,3]
[378043169,1754679044332,-421.56826937,0.00021225,3]
[378043170,1754679044343,-750.53155868,0.00023465,3]
[378043171,1754679044385,-619.38599996,0.00023465,3]
[378043358,1754679046333,-1244.98499966,0.00021725,3]
[378043589,1754679204572,200.38624859,0.00030136,120]
[378043590,1754679228594,159.11,0.00013699,2]
[378043592,1754679336368,250.0,0.00015,2]
[378043593,1754679337453,300.0,0.00017,2]
[378043599,1754679688917,198.04,0.00027602,120]
[378043604,1754679921630,180.55,0.00016712,2]
[378043612,1754680232201,-1184.26,0.00019,2]
[378043613,1754680232211,-2500.0,0.00019475,2]
[378043614,1754680232220,-500.0,0.00019949,2]
[378043615,1754680232230,-2500.0,0.00020494,2]
[378043616,1754680232239,-1200.0,0.00020898,2]
[378043617,1754680232249,-500.0,0.000209,2]
[378043618,1754680232259,-1440.47696896,0.000209,2]
[378043619,1754680232271,-530.22462598,0.000209,2]
[378043620,1754680232283,-480.55385569,0.000209,2]
[378043621,1754680232295,-48.74454937,0.000209,2]
[378043622,1754680232304,-951.25545063,0.000209,2]
[378043623,1754680232337,-1455.78504713,0.000209,2]
[378043624,1754680232349,-92.95950224,0.000209,2]
[378043625,1754680232358,-156.15,0.00021368,2]
[378043626,1754680232368,-643.01500034,0.00021725,3]
[378043627,1754680232378,-400.0,0.00022843,2]
[378043628,1754680232388,-1200.0,0.00023157,2]
[378043629,1754680232398,-159.11,0.00023182,2]
[378043630,1754680232407,-457.64618948,0.00023332,2]
[378043631,1754680232416,-842.44706758,0.00023332,2]
[378043632,1754680232425,-211.62674257,0.00023332,2]
[378043633,1754680232435,-2406.08244136,0.00023465,3]
[378043634,1754680232444,-267.46074303,0.00026115,2]
[378043635,1754680232454,-517.0,0.0002657,2]
[378043636,1754680232463,-436.02,0.00027315,3]
[378043637,1754680232473,-521.81,0.00027397,4]
[378043638,1754680232482,-300.0,0.00027397,2]
[378043639,1754680232491,-277.35679052,0.00027484,2]
[378043640,1754680232501,-188.83,0.00027654,2]
[378043641,1754680232510,-5000.0,0.00027667,2]
[378043642,1754680232520,-1000.0,0.00028239,2]
[378043643,1754680232530,-1000.0,0.00028333,2]
[378043644,1754680232540,-287.61899177,0.00028853,2]
[378043645,1754680232550,-428.69572218,0.00028878,2]
[378043646,1754680232559,-156.15,0.00029587,2]
[378043647,1754680232568,-271.3556325,0.00029893,2]
[378043648,1754680232577,-234.0,0.0003,14]
[378043649,1754680232586,-216.0,0.0003,14]
[378043650,1754680232596,-1519.63199363,0.00030052,2]
[378043651,1754680232605,-1703.51645407,0.00030052,2]
[378043652,1754680232614,-1524.765,0.00030097,25]
[378043653,1754680232624,-2000.0,0.000301,2]
[378043655,1754680232633,-28085.07878325,0.000301,2]
[378043657,1754680232656,-636.20653396,0.000301,2]
[378043658,1754680232668,-892.29370487,0.000301,2]
[378043659,1754680232702,-1888.0,0.00019975,3]
[378043660,1754680232712,-335.19661275,0.00022215,3]
[378043661,1754680232724,-2677.65741431,0.00022215,3]
[378043662,1754680232735,-763.14597294,0.00022215,3]
[378043663,1754680232744,-2386.42097792,0.000301,2]
[378043664,1754680232754,-400.0,0.00030115,2]
[378043665,1754680232763,-400.0,0.00030115,2]
[378043666,1754680232773,-400.0,0.00030115,2]
[378043667,1754680232782,-223.82280994,0.00030137,2]
[378043668,1754680232791,-335.96249978,0.00030141,2]
[378043669,1754680232800,-359.01563038,0.00030151,2]
[378043670,1754680232811,-140.98436962,0.00030151,2]
[378043671,1754680232821,-449.68474688,0.00030151,2]
[378043672,1754680232830,-400.0,0.00030151,2]
[378043673,1754680232839,-224.54,0.00030151,2]
[378043674,1754680232848,-400.0,0.00030151,2]
[378043675,1754680232857,-528.84,0.00030151,2]
[378043676,1754680232866,-400.0,0.00030151,2]
[378043677,1754680232875,-400.0,0.00030151,2]
[378043678,1754680232884,-400.0,0.00030151,2]
[378043679,1754680232896,-182.23,0.00030151,2]
[378043680,1754680232907,-400.0,0.00030151,2]
[378043681,1754680232916,-400.0,0.00030151,2]
[378043682,1754680232925,-283.72,0.00030151,2]
[378043683,1754680232934,-400.0,0.00030151,2]
[378043684,1754680232945,-400.0,0.00030151,2]
[378043685,1754680232954,-400.0,0.00030151,2]
[378043686,1754680232963,-169.91,0.00030151,2]
[378043687,1754680232973,-387.99,0.00030151,2]
[378043688,1754680232982,-473.82,0.00030151,2]
[378043689,1754680232991,-175.71,0.00030151,2]
[378043690,1754680233000,-400.0,0.00030151,2]
[378043691,1754680233009,-288.29,0.00030151,2]
[378043692,1754680233019,-199.08,0.00030151,2]
[378043693,1754680233029,-400.0,0.00030151,2]
[378043694,1754680233039,-391.76,0.00030151,2]
[378043695,1754680233048,-500.0,0.00030151,2]
[378043696,1754680233058,-219.05,0.00030151,2]
[378043697,1754680233068,-400.0,0.00030151,2]
[378043698,1754680233078,-400.0,0.00030151,2]
[378043699,1754680233087,-203.11,0.00030151,2]
[378043700,1754680233097,-400.0,0.00030151,2]
[378043701,1754680233106,-150.0,0.00030151,2]
[378043702,1754680233116,-150.0,0.00030151,2]
[378043703,1754680233125,-400.0,0.00030151,2]
[378043704,1754680233136,-471.63,0.00030151,2]
[378043705,1754680233145,-1337.5756151,0.00030151,2]
[378043706,1754680238120,-2468.4043849,0.00030151,2]
[378043707,1754680238130,-400.0,0.00030151,2]
[378043708,1754680238140,-400.0,0.00030151,2]
[378043709,1754680238150,-400.0,0.00030151,2]
[378043710,1754680238160,-400.0,0.00030151,2]
[378043711,1754680238170,-400.0,0.00030151,2]
[378043712,1754680238180,-530.12,0.00030151,2]
[378043713,1754680238191,-400.0,0.00030151,2]
[378043714,1754680238202,-400.0,0.00030151,2]
[378043715,1754680238212,-1737.72819653,0.00030151,2]
[378043716,1754680238226,-740.14199999,0.00030151,2]
[378043717,1754680238260,-1540.18980348,0.00030151,2]
[378043718,1754680238272,-400.0,0.00030151,2]
[378043719,1754680238283,-400.0,0.00030151,2]
[378043720,1754680238294,-400.0,0.00030151,2]
[378043721,1754680238307,-400.0,0.00030151,2]
[378043722,1754680238320,-400.0,0.00030151,2]
[378043723,1754680238331,-500.0,0.00030151,2]
[378043724,1754680238343,-400.0,0.00030151,2]
[378043725,1754680238354,-212.4515014,0.00030151,2]
[378043726,1754680238366,-400.0,0.00030151,2]
[378043727,1754680238377,-3740.36186064,0.00030152,2]
[378043728,1754680238389,-1070.42603095,0.00030152,2]
[378043729,1754680238403,-1240.07,0.00030152,2]
[378043730,1754680238416,-13031.40797641,0.00030152,2]
[378043731,1754680238431,-1042.45575235,0.00030152,2]
[378043734,1754680238452,-8526.17494332,0.00030152,2]
[378043736,1754680238464,-51480.2568921,0.00030152,2]
[378043739,1754680238485,-1935.34111815,0.00030152,2]
[378043742,1754680238497,-921.249072,0.00030152,2]
[378043892,1754680243506,-224.045555,0.000301,2]
[378043893,1754680243518,-400.0,0.00030151,2]
[378043894,1754680243529,-11556.73115741,0.00030152,2]
[378043895,1754680246233,-29431.14570489,0.00030152,2]
[378043896,1754680246246,-5920.51957358,0.00030152,2]
[378043897,1754680246340,-1057.5416785,0.00030152,2]
[378043898,1754680246496,-1104.08224634,0.00030152,2]
[378043899,1754680246601,-1118.49999779,0.00030152,2]
[378043903,1754680313809,173.99,0.00013699,2]
[378043904,1754680361378,1737.0,0.0003013,120]
[378043905,1754680364876,200.0,0.0003013,120]
[378043907,1754680662706,803.35484366,0.00030136,120]
[378043914,1754681139745,250.0,0.00015,2]
[378043915,1754681140824,300.0,0.00017,2]
[378043916,1754681166637,177.89719417,0.00015,2]
[378043918,1754681258539,19272.10280583,0.00018,2]
[378043919,1754681258569,279027.2176164,0.00018,2]
[378043920,1754681261535,439.0,0.0003013,120]
[378043921,1754681263678,380.09766687,0.0003013,120]
[378043922,1754681272650,555.8293107,0.00013,2]
[378043923,1754681275644,31639.36596323,0.00018,2]
[378043924,1754681294552,728.42677947,0.0001439,2]
[378043925,1754681296019,200.0,0.0001634,2]
[378043926,1754681300932,10898.52657199,0.00012,30]
[378043927,1754681320384,497.01456255,0.000154,2]
[378043928,1754681324056,10345.69779503,0.00013368,2]
[378043932,1754681338471,181.15,0.00013699,2]
[378043942,1754681432447,-300.0,0.00018615,2]
[378043943,1754681432457,-286.52799764,0.00018615,2]
[378043944,1754681432500,-13.47200236,0.00018615,2]
[378043945,1754681432664,-300.0,0.00018763,2]
[378043946,1754681432720,-300.0,0.00018763,2]
[378043947,1754681432730,-300.0,0.0001883,2]
[378043948,1754681432739,-300.0,0.0001883,2]
[378043949,1754681432748,-140.2626978,0.00018899,2]
[378043953,1754681432874,-159.7373022,0.00018899,2]
[378043955,1754681432883,-1533.1648086,0.000189,2]
[378043956,1754681432892,-670.05266081,0.000189,2]
[378043957,1754681432902,-513.82825534,0.00018973,2]
[378043958,1754681432911,-226.05,0.0001899,2]
[378043959,1754681432920,-226.05,0.0001899,2]
[378043960,1754681432930,-226.05,0.0001899,2]
[378043961,1754681432939,-226.05,0.0001899,2]
[378043962,1754681432948,-226.05,0.0001899,2]
[378043963,1754681432958,-205.28805265,0.0001899,2]
[378043964,1754681432966,-284.4598503,0.00018998,2]
[378043965,1754681432978,-532.5401497,0.00018998,2]
[378043966,1754681432988,-253.75170147,0.00018999,2]
[378043968,1754681432999,-246.24829853,0.00018999,2]
[378043969,1754681433008,-500.0,0.00018999,2]
[378043970,1754681433017,-496.80483189,0.00018999,2]
[378043975,1754681433029,-3.19516811,0.00018999,2]
[378043977,1754681433038,-500.0,0.00018999,2]
[378043980,1754681433047,-40.80810436,0.00018999,2]
[378043982,1754681433061,-459.19189564,0.00018999,2]
[378043984,1754681433071,-500.0,0.00018999,2]
[378043986,1754681433080,-500.0,0.00018999,2]
[378043988,1754681433089,-500.0,0.00018999,2]
[378043990,1754681433099,-500.0,0.00018999,2]
[378043992,1754681433109,-500.0,0.00018999,2]
[378043994,1754681433118,-500.0,0.00018999,2]
[378043996,1754681433128,-500.0,0.00018999,2]
[378043997,1754681433137,-500.0,0.00018999,2]
[378043998,1754681433146,-500.0,0.00018999,2]
[378043999,1754681433156,-500.0,0.00018999,2]
[378044000,1754681433165,-500.0,0.00018999,2]
[378044001,1754681433174,-500.0,0.00018999,2]
[378044002,1754681433184,-340.32996543,0.00018999,2]
[378044003,1754681433196,-159.67003457,0.00018999,2]
[378044004,1754681433206,-500.0,0.00018999,2]
[378044005,1754681433216,-500.0,0.00018999,2]
[378044006,1754681433227,-500.0,0.00018999,2]
[378044007,1754681433236,-500.0,0.00018999,2]
[378044008,1754681433245,-441.81394701,0.00018999,2]
[378044009,1754681433262,-58.18605299,0.00018999,2]
[378044010,1754681433272,-500.0,0.00018999,2]
[378044011,1754681433281,-500.0,0.00018999,2]
[378044012,1754681433290,-500.0,0.00018999,2]
[378044013,1754681433301,-500.0,0.00018999,2]
[378044014,1754681433311,-30.06594701,0.00018999,2]
[378044015,1754681433331,-469.93405299,0.00018999,2]
[378044016,1754681433341,-500.0,0.00018999,2]
[378044017,1754681433351,-230.06594701,0.00018999,2]
[378044023,1754681438290,-1456.90317646,0.00018515,2]
[378044024,1754681438301,-269.93405299,0.00018999,2]
[378044025,1754681438312,-500.0,0.00018999,2]
[378044026,1754681438321,-500.0,0.00018999,2]
[378044027,1754681438332,-500.0,0.00018999,2]
[378044028,1754681438342,-500.0,0.00018999,2]
[378044029,1754681438352,-500.0,0.00018999,2]
[378044030,1754681438362,-500.0,0.00018999,2]
[378044031,1754681438373,-500.0,0.00018999,2]
[378044032,1754681438382,-500.0,0.00018999,2]
[378044033,1754681438393,-500.0,0.00018999,2]
[378044034,1754681438405,-500.0,0.00018999,2]
[378044035,1754681438414,-500.0,0.00018999,2]
[378044036,1754681438424,-273.37043363,0.00018999,2]
[378044037,1754681438433,-500.0,0.00018999,2]
[378044038,1754681438443,-500.0,0.00018999,2]
[378044039,1754681438453,-412.41339442,0.00018999,2]
[378044040,1754681438466,-87.58660558,0.00018999,2]
[378044041,1754681438476,-500.0,0.00018999,2]
[378044042,1754681438486,-500.0,0.00018999,2]
[378044043,1754681438495,-28.18952768,0.00018999,2]
[378044044,1754681438508,-471.81047232,0.00018999,2]
[378044045,1754681438517,-500.0,0.00018999,2]
[378044046,1754681438526,-500.0,0.00018999,2]
[378044047,1754681438535,-500.0,0.00018999,2]
[378044048,1754681438545,-400.0,0.00018999,2]
[378044049,1754681438555,-500.0,0.00018999,2]
[378044050,1754681438565,-500.0,0.00018999,2]
[378044051,1754681438574,-500.0,0.00018999,2]
[378044052,1754681438584,-500.0,0.00018999,2]
[378044053,1754681438594,-500.0,0.00018999,2]
[378044054,1754681438604,-500.0,0.00018999,2]
[378044055,1754681438614,-500.0,0.00018999,2]
[378044056,1754681438623,-500.0,0.00018999,2]
[378044057,1754681438632,-500.0,0.00018999,2]
[378044058,1754681438642,-500.0,0.00018999,2]
[378044059,1754681438651,-6733.85337801,0.00019,2]
[378044060,1754681438666,-24547.63911803,0.00019,2]
[378044062,1754681438682,-1000.0,0.00019,2]
[378044065,1754681438696,-635.43999999,0.00019,2]
[378044067,1754681438707,-275.38883809,0.00019,2]
[378044069,1754681438718,-3646.76827121,0.00019,2]
[378044072,1754681438733,-819.49233313,0.00019,2]
[378044074,1754681438745,-9395.71596632,0.00019,2]
[378044076,1754681438755,-2743.00340848,0.00019,2]
[378044200,1754681440362,-352.417206,0.00018903,2]
[378044201,1754681440371,-119.05392182,0.00019,2]
[378044202,1754681440469,-395629.80272142,0.00019,2]
[378044203,1754681440479,-25343.20390373,0.00019,2]
[378044204,1754681440488,-1065.83,0.00019,2]
[378044205,1754681440497,-79297.61391576,0.00019,2]
[378044206,1754681440509,-1283.44842186,0.00019,2]
[378044207,1754681440520,-45245.1991278,0.00019,2]
[378044208,1754681440535,-2523.11316799,0.00019,2]
[378044209,1754681440547,-7615.71942224,0.00019,2]
[378044210,1754681440558,-6998.16740977,0.00019,2]
[378044211,1754681440569,-467.9076096,0.00019,2]
[378044293,1754681446443,-1255.40579995,0.00019,2]
[378044294,1754681543087,202.11,0.00015949,2]
[378044295,1754681543300,202.11,0.00017679,2]
[378044297,1754681614603,293.77,0.00024804,120]
[378044298,1754681614826,293.77,0.00027284,120]
[378044299,1754681615071,293.77,0.00029765,120]
[378044306,1754682093855,187.73,0.00015564,2]
[378044308,1754682307510,2720774.86791394,0.00030137,120]
[378044309,1754682401328,179.77,0.00013699,2]
[378044310,1754682425851,3757.5,0.0002223,120]
[378044320,1754682631654,-280.47773659,0.00018486,2]
[378044321,1754682631665,-300.0,0.00018514,2]
[378044322,1754682631675,-175.0,0.00018543,7]
[378044323,1754682631684,-1000.0,0.00018586,2]
[378044324,1754682631693,-300.0,0.00018614,2]
[378044325,1754682631703,-150.5,0.00018837,2]
[378044326,1754682631712,-1500.0,0.00018837,2]
[378044327,1754682631721,-250.0,0.00018848,2]
[378044328,1754682631730,-300.0,0.00018899,2]
[378044329,1754682631739,-669.0,0.00018899,2]
[378044330,1754682631748,-2238.98519616,0.000189,2]
[378044331,1754682631757,-500.0,0.000189,6]
[378044332,1754682631766,-150.72462576,0.000189,2]
[378044333,1754682631776,-564.78905835,0.000189,2]
[378044334,1754682631790,-6081.49,0.00018959,2]
[378044335,1754682631810,-4177.52,0.00018959,2]
[378044336,1754682631825,-503.59331521,0.00018973,2]
[378044337,1754682631835,-508.58563695,0.00018973,2]
[378044338,1754682631843,-501.37488794,0.00018973,2]
[378044339,1754682631853,-500.0,0.00018973,2]
[378044340,1754682631863,-500.0,0.00018973,2]
[378044341,1754682631872,-500.0,0.00018973,2]
[378044342,1754682631881,-500.0,0.00018973,2]
[378044343,1754682631890,-500.0,0.00018973,2]
[378044344,1754682631899,-1340.728,0.00018973,2]
[378044345,1754682631908,-32320.17161881,0.00018989,2]
[378044346,1754682631917,-500.0,0.00018999,2]
[378044347,1754682631926,-500.0,0.00018999,2]
[378044348,1754682631935,-500.0,0.00018999,2]
[378044349,1754682631944,-500.0,0.00018999,2]
[378044350,1754682631953,-500.0,0.00018999,2]
[378044351,1754682631962,-500.0,0.00018999,2]
[378044352,1754682631972,-500.0,0.00018999,2]
[378044353,1754682631981,-500.0,0.00018999,2]
[378044354,1754682631990,-500.0,0.00018999,2]
[378044355,1754682631999,-500.0,0.00018999,2]
[378044356,1754682632008,-510.47642736,0.00018999,2]
[378044357,1754682632017,-500.0,0.00018999,2]
[378044358,1754682632026,-500.0,0.00018999,2]
[378044359,1754682632035,-412.78987436,0.00018999,2]
[378044360,1754682632045,-444.928598,0.00018999,2]
[378044361,1754682632054,-500.0,0.00018999,2]
[378044362,1754682632063,-500.0,0.00018999,2]
[378044363,1754682632073,-464.4304437,0.00018999,2]
[378044364,1754682632081,-116572.54302993,0.00019,2]
[378044365,1754682632093,-59449.22588344,0.00019,2]
[378044366,1754682632103,-258427.28951613,0.00019,2]
[378044367,1754682632114,-9839.33189705,0.00019,2]
[378044368,1754682632125,-2691.48493279,0.00019,2]
[378044369,1754682632136,-316.0,0.00019,2]
[378044370,1754682632150,-2026.49999999,0.00019,2]
[378044371,1754682632161,-428.181,0.00019,2]
[378044378,1754682637442,-9010.63,0.0001841,2]
[378044379,1754682637452,-3127.57835,0.00019,2]
[378044380,1754682637546,-12153.00962649,0.00019,2]
[378044381,1754682637600,-1300.96244704,0.00019,2]
[378044382,1754682637704,-3755.9997165,0.00019,2]
[378044384,1754682639591,-702.51926634,0.00019,2]
[378044385,1754682640010,-41243.3608,0.00019,2]
[378044386,1754682640021,-42556.75824771,0.00019,2]
[378044387,1754682640114,-307.34375552,0.00019,2]
[378044388,1754682640169,-7110.02625503,0.00019,2]
[378044389,1754682640182,-201204.85437857,0.00019,2]
[378044390,1754682640191,-1065.83,0.00019,2]
[378044391,1754682640201,-2751.0,0.0001904,2]
[378044392,1754682640210,-174.12,0.00019178,2]
[378044393,1754682640220,-386.48784942,0.00019225,2]
[378044394,1754682640229,-205.28,0.00019228,2]
[378044395,1754682640239,-164.66,0.00019354,2]
[378044396,1754682640247,-202.11,0.0001941,2]
[378044397,1754682640256,-338.39,0.00019455,2]
[378044398,1754682640265,-811.32092182,0.00019475,2]
[378044399,1754682640275,-500.0,0.00019521,2]
[378044400,1754682640284,-515.0,0.0001957,2]
[378044401,1754682640293,-19442.53,0.00019592,2]
[378044402,1754682640302,-150.0,0.00019767,2]
[378044403,1754682640312,-293.77,0.00019843,2]
[378044404,1754682640322,-5374.47,0.00019955,2]
[378044405,1754682640331,-179.77,0.00020187,2]
[378044406,1754682640340,-164.66,0.00020321,2]
[378044407,1754682640349,-300.0,0.00020335,2]
[378044408,1754682640360,-500.0,0.00020335,2]
[378044409,1754682640371,-300.0,0.0002043,2]
[378044410,1754682640380,-500.0,0.0002043,2]
[378044411,1754682640390,-300.0,0.0002043,2]
[378044412,1754682640399,-1000.0,0.0002043,4]
[378044413,1754682640408,-300.0,0.00020521,2]
[378044414,1754682640417,-500.0,0.00020521,2]
[378044415,1754682640426,-420.0,0.00020602,2]
[378044416,1754682640435,-2238.98519608,0.00020678,2]
[378044417,1754682640445,-500.0,0.00020761,2]
[378044418,1754682640454,-1000.0,0.00020909,2]
[378044419,1754682640463,-202.11,0.0002114,2]
[378044420,1754682640473,-164.66,0.00021289,2]
[378044421,1754682640482,-898.49,0.0002144,2]
[378044422,1754682640491,-5358.81,0.0002145,2]
[378044423,1754682640500,-1593.09,0.00021487,2]
[378044424,1754682640509,-200.0,0.00021683,2]
[378044425,1754682640519,-1000.0,0.00021777,2]
[378044426,1754682640529,-150.72462576,0.000218,2]
[378044427,1754682640538,-666.0,0.00021918,3]
[378044428,1754682640548,-5000.0,0.00021918,2]
[378044429,1754682640558,-241.91014258,0.00021918,2]
[378044430,1754682640567,-191.97,0.00021966,2]
[378044431,1754682640577,-151.0,0.00022213,7]
[378044432,1754682640589,-152.901266,0.00022213,7]
[378044433,1754682640599,-151.0,0.00022213,7]
[378044434,1754682640608,-151.0,0.00022213,7]
[378044435,1754682640619,-151.0,0.00022213,7]
[378044436,1754682640629,-151.0,0.00022213,7]
[378044437,1754682640638,-151.0,0.00022213,7]
[378044438,1754682640647,-151.0,0.00022213,7]
[378044439,1754682640656,-224.130492,0.00022213,7]
[378044440,1754682640667,-151.0,0.00022213,7]
[378044441,1754682640676,-151.0,0.00022213,7]
[378044442,1754682640686,-151.0,0.00022213,7]
[378044443,1754682640695,-151.0,0.00022213,7]
[378044444,1754682640706,-151.0,0.00022213,7]
[378044445,1754682640715,-151.0,0.00022213,7]
[378044446,1754682640724,-151.0,0.00022213,7]
[378044447,1754682640733,-151.0,0.00022213,7]
[378044448,1754682640742,-151.0,0.00022213,7]
[378044449,1754682640752,-151.0,0.00022213,7]
[378044450,1754682640761,-151.0,0.00022213,7]
[378044451,1754682640770,-151.0,0.00022213,7]
[378044452,1754682640779,-151.0,0.00022213,7]
[378044453,1754682640788,-151.0,0.00022213,7]
[378044454,1754682640798,-151.0,0.00022213,7]
[378044455,1754682640807,-161.243233,0.00022213,7]
[378044456,1754682640816,-151.0,0.00022213,7]
[378044457,1754682640826,-152.523671,0.00022213,7]
[378044458,1754682640835,-151.0,0.00022213,7]
[378044459,1754682640844,-151.0,0.00022213,7]
[378044460,1754682640853,-151.0,0.00022213,7]
[378044461,1754682640862,-151.0,0.00022213,7]
[378044462,1754682640872,-151.0,0.00022213,7]
[378044463,1754682640881,-152.324093,0.00022213,7]
[378044464,1754682640890,-151.0,0.00022213,7]
[378044465,1754682640899,-151.0,0.00022213,7]
[378044466,1754682640908,-151.0,0.00022213,7]
[378044467,1754682640918,-164.66,0.00022257,2]
[378044468,1754682640927,-293.77,0.00022324,2]
[378044469,1754682640936,-2238.98519608,0.00022456,2]
[378044470,1754682640945,-811.32092178,0.00022524,2]
[378044471,1754682640954,-150.99,0.00022562,2]
[378044472,1754682640963,-154.01,0.00022614,2]
[378044473,1754682640973,-154.01,0.00022629,2]
[378044474,1754682640982,-154.01,0.00022644,2]
[378044475,1754682640990,-154.01,0.00022659,2]
[378044476,1754682640999,-154.01,0.00022674,2]
[378044477,1754682641009,-255.0,0.0002268,2]
[378044478,1754682641018,-183.0581882,0.0002268,2]
[378044479,1754682641027,-154.01,0.00022689,2]
[378044480,1754682641037,-154.01,0.00022704,2]
[378044481,1754682641046,-154.01,0.00022719,2]
[378044482,1754682641055,-154.01,0.00022734,2]
[378044483,1754682641064,-154.01,0.0002275,2]
[378044484,1754682641075,-154.01,0.00022765,2]
[378044485,1754682641085,-154.01,0.0002278,2]
[378044486,1754682641094,-154.01,0.00022795,2]
[378044487,1754682641103,-154.01,0.0002281,2]
[378044488,1754682641113,-154.01,0.00022825,2]
[378044489,1754682641123,-154.01,0.0002284,2]
[378044490,1754682641132,-202.11,0.00022871,2]
[378044491,1754682641142,-205.28,0.00023074,2]
[378044492,1754682641151,-1000.0,0.00023233,2]
[378044493,1754682641160,-457.64618948,0.00023389,2]
[378044494,1754682641169,-956.0,0.00023885,2]
[378044495,1754682641178,-515.0,0.00024062,8]
[378044496,1754682641190,-511.56380774,0.0002411,30]
[378044497,1754682641200,-2238.98519608,0.00024233,2]
[378044498,1754682641210,-1684.72840082,0.000245,2]
[378044499,1754682641221,-1684.72840078,0.000245,2]
[378044500,1754682641231,-1684.72840078,0.000245,2]
[378044501,1754682641242,-1684.72840078,0.000245,2]
[378044502,1754682641252,-1684.72840078,0.000245,2]
[378044503,1754682641262,-1684.72840078,0.000245,2]
[378044504,1754682641271,-1684.72840078,0.000245,2]
[378044505,1754682641281,-665.24999999,0.000246,2]
[378044506,1754682641292,-202.11,0.00024601,2]
[378044507,1754682641302,-411.19,0.00024657,2]
[378044508,1754682641313,-495.05,0.00024657,2]
[378044509,1754682641322,-400.0,0.00024657,2]
[378044510,1754682641332,-400.0,0.00024657,2]
[378044511,1754682641342,-400.0,0.00024657,2]
[378044512,1754682641352,-400.0,0.00024657,2]
[378044513,1754682641363,-400.0,0.00024657,2]
[378044514,1754682641373,-400.0,0.00024657,2]
[378044515,1754682641382,-400.0,0.00024657,2]
[378044516,1754682641393,-442.29,0.00024657,2]
[378044517,1754682641403,-156.752019,0.00024657,7]
[378044518,1754682641411,-400.0,0.00024657,2]
[378044519,1754682641423,-400.0,0.00024657,2]